bitfinex-derivatives/quotes_SOLF0:USTF0_20250113
["timestamp","ask_amount","ask_price","bid_price","bid_amount"]
[1736751155367,23.8673,182.74,182.61,20.76393124]
[1736751155871,2.7381,182.71,182.61,20.76393124]
[1736751156067,23.8673,182.74,182.61,20.76393124]
[1736751156772,2.7378,182.73,182.64,2.739]
[1736751156971,2.7378,182.73,182.61,20.76393124]
[1736751157172,23.8673,182.74,182.61,20.76393124]
[1736751157368,23.8673,182.74,182.68,2.7385]
[1736751158561,23.8673,182.74,182.66,2.7387]
[1736751158762,23.8673,182.74,182.64,20.76393124]
[1736751159168,26.6049,182.74,182.66,2.7387]
[1736751159371,23.8673,182.74,182.64,20.76393124]
[1736751160370,23.8673,182.74,182.67,2.7386]
[1736751161570,23.8673,182.74,182.64,20.76393124]
[1736751161770,23.8673,182.74,182.67,20.76393124]
[1736751161979,23.8673,182.74,182.71,2.738]
[1736751162282,22.22,182.74,182.67,20.76393124]
[1736751162577,22.22,182.74,182.72,2.7378]
[1736751163370,22.22,182.74,182.7,2.7381]
[1736751163575,22.22,182.74,182.66,6.5]
[1736751163870,22.22,182.74,182.68,2.7385]
[1736751164266,24.9576,182.74,182.66,6.5]
[1736751164469,22.22,182.74,182.67,2.7386]
[1736751164777,22.22,182.74,182.66,6.5]
[1736751165176,22.22,182.74,182.67,20.76393124]
[1736751166070,22.22,182.74,182.71,2.738]
[1736751166377,22.22,182.74,182.67,20.76393124]
[1736751166972,22.22,182.74,182.64,20.76393124]
[1736751167172,1.6882,182.73,182.64,20.76393124]
[1736751167576,1.6882,182.73,182.67,2.7386]
[1736751167979,1.6882,182.73,182.61,20.76393124]
[1736751168276,20.76393124,182.7,182.55,20.76393124]
[1736751168481,3.2514,182.69,182.56,1.00673845]
[1736751168681,2.7391,182.64,182.57,2.7401]
[1736751169182,5.9899,182.69,182.61,2.7395]
[1736751169578,3.2514,182.69,182.55,20.76393124]
[1736751169781,2.7388,182.66,182.59,2.7397]
[1736751170374,3.2514,182.69,182.52,20.76393124]
[1736751170982,2.7388,182.66,182.55,20.76393124]
[1736751171178,3.2514,182.69,182.55,20.76393124]
[1736751171783,3.2514,182.69,182.53,1.00702626]
[1736751172081,2.7388,182.67,182.6,2.7397]
[1736751172284,3.2514,182.69,182.53,1.00702626]
[1736751173483,3.2514,182.69,182.55,20.76393124]
[1736751173680,2.7388,182.67,182.59,2.7398]
[1736751173879,3.2514,182.69,182.55,20.76393124]
[1736751174178,2.7389,182.66,182.59,2.7397]
[1736751174384,3.2514,182.69,182.59,2.7397]
[1736751174782,2.7391,182.65,182.59,2.7398]
[1736751174981,3.2514,182.69,182.53,1.00702626]
[1736751175188,13.68,182.65,182.53,1.00702626]
[1736751175378,2.7394,182.62,182.53,1.00702626]
[1736751175781,1.6482,182.64,182.56,2.7403]
[1736751175978,1.6482,182.64,182.53,1.00702626]
[1736751176286,22.41213124,182.64,182.53,1.00702626]
[1736751176480,2.7401,182.58,182.53,1.00702626]
[1736751176678,1.6028,182.57,182.53,1.00702626]
[1736751177181,4.343,182.57,182.53,1.00702626]
[1736751177379,1.6028,182.57,182.53,1.00702626]
[1736751177984,2.7394,182.62,182.53,1.00702626]
[1736751178185,1.6028,182.63,182.53,1.00702626]
[1736751178587,4.3421,182.63,182.57,2.7401]
[1736751178784,1.6028,182.63,182.55,20.76393124]
[1736751179383,1.6028,182.63,182.58,20.76393124]
[1736751179583,13.68,182.65,182.58,20.76393124]
[1736751179786,7.89,182.63,182.58,20.76393124]
[1736751180287,7.89,182.63,182.62,2.7394]
[1736751180487,7.89,182.63,182.58,20.76393124]
[1736751181082,7.89,182.63,182.62,2.7394]
[1736751181681,13.68,182.65,182.64,2.7391]
[1736751181895,13.68,182.65,182.64,23.50303124]
[1736751182189,1.6705,182.72,182.64,20.76393124]
[1736751182383,1.612,182.73,182.67,20.76393124]
[1736751182986,14.34,182.74,182.67,20.76393124]
[1736751183382,14.34,182.74,182.71,2.738]
[1736751183692,1.582,182.77,182.67,20.76393124]
[1736751184187,1.582,182.77,182.7,2.7381]
[1736751184382,1.582,182.77,182.67,20.76393124]
[1736751184589,1.582,182.77,182.64,20.76393124]
[1736751184794,2.7377,182.74,182.67,2.7386]
[1736751184987,1.582,182.77,182.6,6.48]
[1736751184988,20.76393124,182.76,182.61,20.76393124]
[1736751185393,20.76393124,182.76,182.6,6.48]
[1736751185589,20.76393124,182.73,182.58,20.76393124]
[1736751185788,6.48,182.72,182.58,20.76393124]
[1736751186093,6.48,182.72,182.61,20.76393124]
[1736751186988,9.2179,182.72,182.65,2.7388]
[1736751187489,6.48,182.72,182.61,20.76393124]
[1736751187690,2.7381,182.71,182.64,2.7391]
[1736751187993,6.48,182.72,182.61,20.76393124]
[1736751189092,6.48,182.72,182.58,20.76393124]
[1736751189289,1.6617,182.71,182.58,20.76393124]
[1736751189695,2.7386,182.67,182.6,2.7395]
[1736751189889,3.3777,182.66,182.6,2.7395]
[1736751190395,3.3777,182.66,182.57,7.88052022]
[1736751190597,3.3777,182.66,182.61,2.7395]
[1736751191198,3.3777,182.66,182.57,7.88052022]
[1736751191391,3.3777,182.66,182.58,20.76393124]
[1736751191795,1.6976,182.66,182.58,20.76393124]
[1736751191994,1.6617,182.71,182.61,20.76393124]
[1736751191995,3.3418,182.71,182.61,20.76393124]
[1736751192196,1.6801,182.71,182.61,20.76393124]
[1736751192403,1.6826,182.75,182.64,20.76393124]
[1736751192805,4.4201,182.75,182.64,20.76393124]
[1736751193006,1.6826,182.75,182.68,2.7384]
[1736751193908,1.6826,182.75,182.64,20.76393124]
[1736751194511,2.7376,182.74,182.68,2.7384]
[1736751194907,1.6826,182.75,182.64,20.76393124]
[1736751195106,1.6826,182.75,182.61,20.76393124]
[1736751195612,2.7383,182.7,182.59,6.46]
[1736751196207,11.09,182.7,182.58,20.76393124]
[1736751196403,11.09,182.7,182.57,7.88052022]
[1736751196613,31.85393124,182.7,182.55,20.76393124]
[1736751196913,11.09,182.7,182.58,20.76393124]
[1736751197301,2.7384,182.69,182.62,2.7394]
[1736751197507,11.09,182.7,182.55,20.76393124]
[1736751198414,2.7386,182.68,182.6,2.7395]
[1736751198710,1.5434,182.67,182.6,2.7395]
[1736751198912,1.5434,182.67,182.55,20.76393124]
[1736751198913,1.5781,182.66,182.62,2.7394]
[1736751199109,1.5781,182.66,182.58,20.76393124]
[1736751199509,1.5781,182.66,182.6,2.7396]
[1736751199705,1.5781,182.66,182.58,20.76393124]
[1736751199907,1.5434,182.67,182.58,20.76393124]
[1736751200109,12.6681,182.7,182.58,20.76393124]
[1736751200310,12.6681,182.7,182.61,20.76393124]
[1736751201211,12.6681,182.7,182.64,2.739]
[1736751201403,12.6681,182.7,182.61,20.76393124]
[1736751202008,15.4064,182.7,182.64,2.739]
[1736751202207,12.6681,182.7,182.61,20.76393124]
[1736751202613,12.6681,182.7,182.65,2.7388]
[1736751202810,12.6681,182.7,182.61,20.76393124]
[1736751203116,2.7385,182.68,182.62,2.7393]
[1736751204014,12.6681,182.7,182.58,20.76393124]
[1736751204208,2.7386,182.67,182.61,2.7395]
[1736751204605,2.7388,182.66,182.6,2.7397]
[1736751204810,12.6681,182.7,182.55,27.20393124]
[1736751205303,2.7389,182.66,182.55,27.20393124]
[1736751206613,2.7389,182.66,182.58,2.7399]
[1736751206815,2.7389,182.66,182.55,27.20393124]
[1736751208108,2.7389,182.66,182.6,2.7397]
[1736751208506,44.69203124,182.7,182.55,20.76393124]
[1736751208712,2.7391,182.65,182.58,2.74]
[1736751209016,1.607,182.64,182.53,13.87687]
[1736751209208,1.6208,182.63,182.53,13.87687]
[1736751209808,1.6208,182.63,182.59,2.7397]
[1736751210008,1.6208,182.63,182.53,13.87687]
[1736751210214,1.6208,182.63,182.57,2.74]
[1736751211120,1.6208,182.63,182.53,13.87687]
[1736751211624,1.607,182.64,182.55,20.76393124]
[1736751212125,4.3932,182.69,182.55,20.76393124]
[1736751212313,3.2952,182.69,182.58,20.76393124]
[1736751212712,2.7385,182.68,182.62,2.7393]
[1736751212917,3.2952,182.69,182.54,27.18393124]
[1736751213521,3.2952,182.69,182.59,2.7397]
[1736751213522,2.7389,182.66,182.59,2.7397]
[1736751214325,3.2952,182.69,182.54,27.18393124]
[1736751214719,3.2952,182.69,182.54,20.76393124]
[1736751215123,3.2952,182.69,182.57,2.74]
[1736751215324,20.76393124,182.67,182.53,13.87687]
[1736751215622,20.76393124,182.67,182.55,2.7404]
[1736751216228,2.7395,182.62,182.55,2.7404]
[1736751216416,20.76393124,182.67,182.55,2.7404]
[1736751217126,20.76393124,182.67,182.53,13.87687]
[1736751218723,6.42,182.66,182.53,13.87687]
[1736751218923,2.7397,182.61,182.55,2.7404]
[1736751219523,14.7597,182.61,182.55,2.7404]
[1736751219720,12.02,182.61,182.53,13.87687]
[1736751220027,2.74,182.59,182.53,13.87687]
[1736751220627,2.74,182.59,182.53,16.61747]
[1736751221522,2.74,182.59,182.53,13.87687]
[1736751221723,2.74,182.59,182.54,2.7406]
[1736751222121,3.0781,182.6,182.53,13.87687]
[1736751222824,3.0781,182.6,182.56,2.7403]
[1736751223030,3.0781,182.6,182.53,13.87687]
[1736751224228,2.7399,182.59,182.54,2.7405]
[1736751225131,2.74,182.58,182.53,16.61757]
[1736751225326,4.6884,182.6,182.53,13.87687]
[1736751225517,2.74,182.58,182.53,13.87687]
[1736751226225,20.76393124,182.58,182.53,13.87687]
[1736751226627,2.7406,182.54,182.53,13.87687]
[1736751227329,4.6884,182.6,182.53,13.87687]
[1736751227828,2.7402,182.57,182.53,13.87687]
[1736751228428,2.7403,182.56,182.53,13.87687]
[1736751229226,2.74,182.58,182.53,16.61757]
[1736751229531,4.6884,182.6,182.53,16.61757]
[1736751229725,2.7403,182.57,182.53,13.87687]
[1736751229933,4.6884,182.6,182.53,13.87687]
[1736751230228,2.7403,182.57,182.53,13.87687]
[1736751230426,4.6884,182.6,182.53,13.87687]
[1736751231229,4.6884,182.6,182.54,2.7405]
[1736751231431,1.5425,182.6,182.53,13.87687]
[1736751231630,13.06,182.6,182.53,13.87687]
[1736751232132,13.06,182.6,182.58,2.7399]
[1736751232333,13.06,182.6,182.53,13.87687]
[1736751232535,13.06,182.6,182.55,2.7404]
[1736751232728,15.7997,182.6,182.53,13.87687]
[1736751232935,13.06,182.6,182.53,13.87687]
[1736751233134,15.7997,182.6,182.54,2.7405]
[1736751233336,13.06,182.6,182.53,13.87687]
[1736751233732,2.7404,182.56,182.53,13.87687]
[1736751234335,2.7405,182.55,182.53,13.87687]
[1736751234536,1.5739,182.59,182.53,13.87687]
[1736751234926,1.5984,182.58,182.53,13.87687]
[1736751235536,2.7406,182.54,182.53,13.87687]
[1736751236030,20.76393124,182.56,182.44,94.04]
[1736751236334,20.76393124,182.56,182.4,20.76393124]
[1736751237434,2.7412,182.51,182.44,2.742]
[1736751237636,20.76393124,182.56,182.4,20.76393124]
[1736751238832,20.76393124,182.56,182.43,2.7421]
[1736751239031,20.76393124,182.56,182.4,20.76393124]
[1736751239438,20.76393124,182.56,182.43,2.7422]
[1736751240237,2.7413,182.5,182.43,2.7422]
[1736751240632,20.76393124,182.56,182.4,20.76393124]
[1736751240833,2.7416,182.47,182.42,2.7423]
[1736751241032,20.76393124,182.56,182.4,20.76393124]
[1736751241233,20.76393124,182.56,182.46,2.7417]
[1736751241437,2.7407,182.53,182.43,20.76393124]
[1736751241637,1.6792,182.57,182.43,20.76393124]
[1736751241835,1.6792,182.57,182.46,2.7418]
[1736751242036,2.741,182.52,182.46,2.7418]
[1736751243441,20.76393124,182.55,182.41,20.76393124]
[1736751243642,20.76393124,182.55,182.39,1.5445]
[1736751244532,20.76393124,182.55,182.42,2.7424]
[1736751245135,2.7415,182.48,182.42,2.7424]
[1736751245336,6.32,182.51,182.35,22.45993124]
[1736751245531,3.3545,182.5,182.35,22.45993124]
[1736751245737,2.742,182.45,182.35,22.45993124]
[1736751245940,1.6273,182.49,182.38,2.743]
[1736751246144,2.7421,182.45,182.35,22.45993124]
[1736751246442,2.7421,182.45,182.38,2.743]
[1736751246641,2.7421,182.45,182.35,22.45993124]
[1736751246942,2.7423,182.43,182.35,22.45993124]
[1736751247133,1.6273,182.49,182.38,2.7429]
[1736751247739,2.7422,182.44,182.38,2.7429]
[1736751249142,20.76393124,182.46,182.33,1.6015]
[1736751249338,13.00081854,182.42,182.33,1.6015]
[1736751249538,13.00081854,182.42,182.31,2.744]
[1736751249745,4.9175,182.41,182.31,2.744]
[1736751250145,2.7432,182.37,182.31,2.744]
[1736751250340,4.9175,182.41,182.3,13.00081854]
[1736751250543,13.00081854,182.39,182.27,13.00081854]
[1736751250847,13.00081854,182.39,182.26,1.6834]
[1736751251038,13.00081854,182.39,182.26,4.4281]
[1736751251241,13.00081854,182.36,182.24,13.00081854]
[1736751251445,20.81781846,182.34,182.21,1.6256]
[1736751251744,2.7444,182.29,182.21,1.6256]
[1736751252141,4.8172,182.33,182.3,10.15219]
[1736751252339,4.8172,182.33,182.3,7.59249]
[1736751252538,4.8172,182.33,182.21,1.6256]
[1736751252743,2.7445,182.28,182.19,20.81781846]
[1736751253352,4.8172,182.33,182.2,2.7456]
[1736751253652,2.7447,182.27,182.2,2.7456]
[1736751253849,20.81781846,182.31,182.18,1.5806]
[1736751254350,20.81781846,182.31,182.19,2.7457]
[1736751254548,2.7445,182.28,182.18,1.5806]
[1736751254744,20.81781846,182.31,182.18,1.5806]
[1736751254940,20.81781846,182.31,182.18,4.3265]
[1736751255146,20.81781846,182.31,182.17,1.5956]
[1736751256244,2.7455,182.22,182.16,2.7463]
[1736751256450,2.7455,182.22,182.12,24.07031846]
[1736751256752,6.38,182.26,182.12,24.07031846]
[1736751256952,1.6947,182.25,182.12,3.2525]
[1736751257647,1.6947,182.25,182.14,20.81781846]
[1736751257953,6.38,182.26,182.17,20.81781846]
[1736751258253,6.38,182.26,182.19,2.7457]
[1736751258456,11.38340337,182.3,182.2,20.81781846]
[1736751258752,29.15340337,182.3,182.2,20.81781846]
[1736751258951,29.15340337,182.3,182.21,3.2525]
[1736751259356,31.89760337,182.3,182.22,2.7453]
[1736751259657,31.89760337,182.3,182.21,3.2525]
[1736751260450,17.77,182.3,182.26,2.7447]
[1736751260849,17.77,182.3,182.21,3.2525]
[1736751261155,17.77,182.3,182.23,20.81781846]
[1736751261551,20.5142,182.3,182.23,2.7452]
[1736751261949,17.77,182.3,182.23,2.7452]
[1736751262450,17.77,182.3,182.21,3.2525]
[1736751262647,17.77,182.3,182.21,5.9979]
[1736751263455,17.77,182.3,182.21,3.2525]
[1736751263647,2.7447,182.27,182.21,3.2525]
[1736751264049,17.77,182.3,182.21,3.2525]
[1736751264266,17.77,182.3,182.17,22.42031846]
[1736751264550,1.5943,182.29,182.14,20.81781846]
[1736751264754,4.3387,182.29,182.17,20.81781846]
[1736751265053,1.5943,182.29,182.17,20.81781846]
[1736751265246,2.7451,182.24,182.17,2.7461]
[1736751266253,8.061,182.28,182.14,20.81781846]
[1736751267450,1.661,182.28,182.17,20.81781846]
[1736751267649,17.77,182.3,182.17,20.81781846]
[1736751267851,17.77,182.3,182.2,20.81781846]
[1736751268153,17.77,182.3,182.21,1.6389]
[1736751268549,17.77,182.3,182.23,20.81781846]
[1736751268950,17.77,182.3,182.29,2.7443]
[1736751269250,6.44173,182.3,182.29,2.7443]
[1736751269445,1.676,182.4,182.29,20.81781846]
[1736751269647,20.81781846,182.48,182.32,20.81781846]
[1736751269955,2.7421,182.44,182.37,2.7431]
[1736751270152,2.7421,182.44,182.32,20.81781846]
[1736751270348,1.6053,182.47,182.32,20.81781846]
[1736751270552,12.1,182.44,182.32,20.81781846]
[1736751270752,2.7423,182.43,182.32,20.81781846]
[1736751270954,12.1,182.44,182.32,20.81781846]
[1736751271355,2.7423,182.43,182.32,20.81781846]
[1736751271956,12.1,182.44,182.38,2.743]
[1736751272159,12.1,182.44,182.32,20.81781846]
[1736751272853,12.1,182.44,182.37,2.7431]
[1736751274763,12.1,182.44,182.34,2.7436]
[1736751275358,2.7424,182.42,182.34,2.7436]
[1736751275557,12.1,182.44,182.29,20.81781846]
[1736751275757,20.81781846,182.42,182.28,1.5932]
[1736751275961,2.743,182.38,182.28,1.5932]
[1736751276262,20.81781846,182.39,182.3,2.7441]
[1736751276558,20.81781846,182.39,182.23,1.5932]
[1736751276762,2.7437,182.33,182.26,2.7448]
[1736751277059,2.7437,182.33,182.22,3.1505]
[1736751277361,2.7436,182.34,182.22,3.1505]
[1736751277657,20.81781846,182.36,182.22,3.1505]
[1736751277863,1.5665,182.38,182.23,22.38601846]
[1736751278054,1.5665,182.38,182.26,20.81781846]
[1736751279061,4.3096,182.38,182.3,2.7442]
[1736751279257,1.5665,182.38,182.3,2.7442]
[1736751279452,1.5665,182.38,182.26,20.81781846]
[1736751280162,1.5665,182.38,182.23,22.38601846]
[1736751280760,20.81781846,182.36,182.23,1.5682]
[1736751281157,2.7439,182.32,182.25,2.7449]
[1736751281358,20.81781846,182.36,182.2,20.81781846]
[1736751281559,5.994,182.31,182.2,20.81781846]
[1736751282057,3.2499,182.31,182.2,20.81781846]
[1736751282254,1.6234,182.31,182.2,20.81781846]
[1736751282462,1.6265,182.37,182.26,20.81781846]
[1736751282862,1.6265,182.37,182.29,2.7443]
[1736751282863,4.3698,182.37,182.29,2.7443]
[1736751283165,1.6265,182.37,182.29,2.7443]
[1736751283361,2.7437,182.34,182.27,2.7446]
[1736751283555,1.6265,182.37,182.23,20.81781846]
[1736751283960,20.81781846,182.36,182.24,2.745]
[1736751284163,20.81781846,182.36,182.2,20.81781846]
[1736751284965,2.744,182.32,182.24,2.7451]
[1736751285160,20.81781846,182.36,182.24,2.7451]
[1736751285366,20.81781846,182.36,182.2,20.81781846]
[1736751286072,2.744,182.31,182.25,2.7448]
[1736751286275,20.81781846,182.36,182.2,20.81781846]
[1736751287271,20.81781846,182.33,182.17,20.81781846]
[1736751287478,27.23781846,182.33,182.17,20.81781846]
[1736751288367,2.7442,182.3,182.24,2.7451]
[1736751290072,2.7439,182.33,182.27,2.7446]
[1736751290376,27.23781846,182.36,182.2,20.81781846]
[1736751291878,20.81781846,182.33,182.2,20.81781846]
[1736751292380,27.21781846,182.33,182.17,20.81781846]
[1736751292772,27.21781846,182.33,182.21,2.7454]
[1736751292977,20.81781846,182.3,182.14,22.90981846]
[1736751293177,3.3521,182.29,182.14,20.81781846]
[1736751293674,1.6235,182.28,182.14,20.81781846]
[1736751293880,2.7452,182.24,182.19,2.7457]
[1736751294079,1.6235,182.28,182.14,20.81781846]
[1736751294473,2.7448,182.26,182.18,2.746]
[1736751294678,1.6235,182.28,182.14,20.81781846]
[1736751295075,2.745,182.25,182.2,2.7457]
[1736751295476,1.6235,182.28,182.14,20.81781846]
[1736751295672,2.7451,182.24,182.18,2.746]
[1736751295977,15.33,182.25,182.14,20.81781846]
[1736751296181,15.33,182.25,182.19,2.7457]
[1736751296677,2.7451,182.24,182.19,2.7457]
[1736751296869,2.7451,182.24,182.18,2.746]
[1736751297074,15.33,182.25,182.18,2.746]
[1736751297475,15.33,182.25,182.19,2.7458]
[1736751297982,2.7452,182.24,182.19,2.7458]
[1736751298379,2.7453,182.23,182.14,20.81781846]
[1736751299075,2.7451,182.24,182.18,2.746]
[1736751299779,2.7453,182.23,182.18,2.746]
[1736751300279,15.33,182.25,182.16,2.7462]
[1736751300482,15.33,182.25,182.14,20.81781846]
[1736751300681,15.33,182.25,182.11,214.99781846]
[1736751300881,2.7459,182.19,182.13,2.7467]
[1736751301481,15.33,182.25,182.11,217.74481846]
[1736751301482,2.7462,182.17,182.11,217.74481846]
[1736751301677,2.7462,182.17,182.11,123.56481846]
[1736751301975,2.7457,182.21,182.11,120.81781846]
[1736751302174,4.8933,182.2,182.11,100.0]
[1736751302381,4.8933,182.2,182.11,72.2114]
[1736751302382,20.81781846,182.17,182.11,72.2114]
[1736751302581,2.7469,182.12,182.11,72.2114]
[1736751302776,20.81781846,182.17,182.11,72.2114]
[1736751302978,25.71111846,182.2,182.11,72.2114]
[1736751303683,2.7463,182.16,182.11,72.2114]
[1736751303980,25.71111846,182.2,182.11,72.2114]
[1736751304481,2.7463,182.16,182.11,72.2114]
[1736751304982,3.2351,182.2,182.11,72.2114]
[1736751306382,6.36,182.22,182.11,72.2114]
[1736751306580,165.57679108,182.23,182.11,72.2114]
[1736751306781,11.38910269,182.23,182.11,72.2114]
[1736751307283,2.7455,182.22,182.15,2.7463]
[1736751307885,2.7456,182.21,182.13,2.7466]
[1736751308087,32.20692115,182.23,182.11,72.2114]
[1736751308283,20.81781846,182.2,182.11,72.2114]
[1736751308488,2.7461,182.18,182.11,72.2114]
[1736751308783,20.81781846,182.2,182.11,72.2114]
[1736751309578,2.7463,182.16,182.11,72.2114]
[1736751310990,2.7467,182.14,182.11,72.2114]
[1736751311191,20.81781846,182.2,182.11,72.2114]
[1736751311989,2.7469,182.13,182.11,72.2114]
[1736751312488,20.81781846,182.2,182.11,72.2114]
[1736751312992,0.6003,182.23,182.11,72.2114]
[1736751313194,2.7458,182.2,182.11,72.2114]
[1736751313492,2.7458,182.2,182.14,2.7465]
[1736751313888,3.1264,182.24,182.11,72.2114]
[1736751313889,2.7456,182.21,182.11,72.2114]
[1736751314095,2.7456,182.21,182.15,2.7464]
[1736751314892,21.69,182.25,182.18,2.746]
[1736751315095,21.69,182.25,182.13,20.81781846]
[1736751315292,15.33,182.25,182.13,20.81781846]
[1736751315491,15.33,182.25,182.17,2.746]
[1736751315693,15.33,182.25,182.11,72.2114]
[1736751316391,2.7458,182.2,182.14,2.7465]
[1736751316590,15.33,182.25,182.11,72.2114]
[1736751316889,36.14781846,182.25,182.11,72.2114]
[1736751317790,2.7463,182.16,182.11,74.9584]
[1736751318294,36.14781846,182.25,182.11,72.2114]
[1736751318496,20.81781846,182.22,182.11,74.9584]
[1736751318895,20.81781846,182.25,182.11,72.2114]
[1736751319091,14.70692,182.23,182.11,93.02921846]
[1736751319495,2.7457,182.2,182.14,2.7465]
[1736751319692,14.70692,182.23,182.11,72.2114]
[1736751319898,16.34,182.2,182.11,72.2114]
[1736751320293,2.7461,182.18,182.13,2.7468]
[1736751320799,2.7461,182.18,182.11,72.2114]
[1736751320800,16.34,182.2,182.11,72.2114]
[1736751321002,20.81781846,182.16,182.11,72.2114]
[1736751321401,2.7469,182.12,182.11,72.2114]
[1736751322395,8.045,182.17,182.11,72.2114]
[1736751323104,6.38,182.17,182.11,72.2114]
[1736751323307,2.7461,182.18,182.11,72.2114]
[1736751323506,16.34,182.2,182.11,72.2114]
[1736751324005,2.7467,182.14,182.11,72.2114]
[1736751324607,2.7468,182.13,182.11,72.2114]
[1736751324903,16.34,182.2,182.11,72.2114]
[1736751325503,20.81781846,182.19,182.11,72.2114]
[1736751326903,2.7469,182.13,182.11,72.2114]
[1736751327104,20.81781846,182.19,182.11,72.2114]
[1736751327804,16.34,182.2,182.11,72.2114]
[1736751328004,2.7463,182.17,182.11,72.2114]
[1736751328504,2.7463,182.16,182.11,72.2114]
[1736751328694,16.34,182.2,182.11,72.2114]
[1736751329099,2.7469,182.12,182.11,72.2114]
[1736751329300,2.7469,182.12,182.11,63.7695]
[1736751329699,2.7469,182.12,182.11,35.5368]
[1736751329904,2.7474,182.09,182.08,64.64896316]
[1736751332003,222.0,182.07,181.81,60.36898369]
[1736751332203,20.81781846,181.92,181.82,3.2616]
[1736751332407,2.7504,181.89,181.82,3.2616]
[1736751332601,23.56821846,181.89,181.82,3.2616]
[1736751332901,23.56821846,181.89,181.81,60.36898369]
[1736751332902,20.81781846,181.86,181.81,60.36898369]
[1736751333110,20.81781846,181.86,181.73,4.9483]
[1736751333310,133.56212354,181.96,181.75,20.81781846]
[1736751333608,20.81781846,181.93,181.83,2.7512]
[1736751333797,20.81781846,181.93,181.84,3.2616]
[1736751334003,20.81781846,181.93,181.85,1.6867]
[1736751334404,6.4,181.94,181.85,1.6867]
[1736751335510,20.81781846,181.93,181.85,1.6867]
[1736751336105,23.56761846,181.93,181.78,2.7519]
[1736751336310,20.81781846,181.9,181.79,3.2296]
[1736751336709,20.81781846,181.87,181.79,3.2296]
[1736751338105,20.81781846,181.87,181.71,6.4]
[1736751338305,20.81781846,181.84,181.73,2.7528]
[1736751338509,20.81781846,181.84,181.72,4.9]
[1736751338812,6.38,181.85,181.76,2.7523]
[1736751339409,6.38,181.85,181.73,20.81781846]
[1736751339602,6.38,181.85,181.72,4.9]
[1736751339800,20.81781846,181.84,181.73,2.7527]
[1736751340205,20.81781846,181.84,181.72,4.9]
[1736751340400,6.38,181.85,181.72,4.9]
[1736751340401,6.38,181.85,181.73,20.81781846]
[1736751341107,20.81781846,181.9,181.73,20.81781846]
[1736751341310,17.78804354,181.95,181.79,20.81781846]
[1736751342211,17.78804354,181.95,181.88,2.7505]
[1736751342412,133.56212354,181.96,181.82,20.81781846]
[1736751342611,20.81781846,181.99,181.85,20.81781846]
[1736751343314,2.7491,181.98,181.83,4.9082]
[1736751343513,20.81781846,181.99,181.83,4.9082]
[1736751343714,6.4,182.01,181.83,4.9082]
[1736751344012,6.4,182.01,181.87,20.81781846]
[1736751344317,6.4,182.01,181.93,2.7497]
[1736751344707,6.4,182.01,181.87,27.23781846]
[1736751344912,20.81781846,182.0,181.87,6.42]
[1736751345315,33.97075613,181.98,181.83,4.9082]
[1736751345514,2.7493,181.97,181.88,2.7505]
[1736751345713,33.97075613,181.98,181.83,4.9082]
[1736751346717,2.7495,181.95,181.86,2.7507]
[1736751346914,2.7495,181.95,181.83,4.9082]
[1736751347414,33.97075613,181.95,181.83,4.9082]
[1736751347616,2.7498,181.93,181.85,2.7509]
[1736751348210,17.1398,181.93,181.85,2.7509]
[1736751348412,17.1398,181.93,181.84,2.7511]
[1736751348619,14.39,181.93,181.83,4.9082]
[1736751348909,14.39,181.93,181.85,2.751]
[1736751349115,2.7499,181.92,181.85,2.751]
[1736751349517,14.39,181.93,181.85,2.751]
[1736751349715,14.39,181.93,181.86,2.7508]
[1736751349915,14.39,181.93,181.83,4.9082]
[1736751350216,2.75,181.92,181.83,4.9082]